bitfinex-derivatives/quotes_ETHF0:USTF0_20240927
["timestamp","ask_amount","ask_price","bid_price","bid_amount"]
[1727445810104,0.8102,2662.1,2661.6,0.37561]
[1727445810403,3.22,2662.0,2661.8,0.37558]
[1727445810594,3.22,2662.0,2661.7,0.37559]
[1727445810796,3.22,2662.0,2661.6,0.4074]
[1727445810797,0.8102,2662.1,2661.8,3.2078]
[1727445811094,0.37552,2662.3,2661.9,0.37557]
[1727445811399,0.37552,2662.3,2661.8,4.18517486]
[1727445811400,3.22,2662.2,2661.8,4.18517486]
[1727445811700,3.22,2662.2,2662.0,0.37555]
[1727445812091,0.3843,2662.5,2662.1,0.37554]
[1727445812292,3.22,2662.4,2662.3,0.37552]
[1727445812500,3.22,2662.4,2662.1,3.2078]
[1727445812704,0.37553,2662.2,2662.1,3.2078]
[1727445813593,0.37552,2662.3,2662.1,3.2078]
[1727445813791,0.37553,2662.2,2662.1,3.2078]
[1727445813992,7.9549,2662.6,2662.1,3.2078]
[1727445814196,0.37552,2662.3,2662.1,3.2078]
[1727445814704,0.37551,2662.4,2662.1,3.2078]
[1727445815002,0.3755,2662.4,2662.1,3.58334]
[1727445815198,0.37553,2662.2,2662.1,3.2078]
[1727445815396,8.89362,2662.6,2662.1,3.2078]
[1727445815591,8.89362,2662.6,2662.1,3.58334]
[1727445815792,0.37551,2662.4,2662.1,3.58334]
[1727445815997,0.37552,2662.3,2662.1,3.2078]
[1727445816299,5.68582,2662.6,2662.1,4.18517486]
[1727445817402,0.3755,2662.5,2662.2,0.37553]
[1727445817602,4.7471,2662.6,2662.1,4.56071486]
[1727445817603,0.37551,2662.4,2662.1,4.56071486]
[1727445818301,5.68581,2662.6,2662.1,4.18517486]
[1727445818602,0.37553,2662.3,2662.1,4.18517486]
[1727445818792,0.37549,2662.5,2662.2,0.37552]
[1727445819100,4.7471,2662.6,2662.3,0.37552]
[1727445819101,4.72848,2662.6,2662.3,0.37552]
[1727445819304,4.353,2662.6,2662.2,1.36707486]
[1727445819501,0.37549,2662.5,2662.2,1.74259486]
[1727445819700,0.3755,2662.4,2662.2,1.74259486]
[1727445819904,0.37549,2662.5,2662.2,1.36707486]
[1727445820098,0.37549,2662.5,2662.2,1.74260486]
[1727445820504,4.72848,2662.6,2662.3,0.37551]
[1727445821004,3.97,2662.6,2662.3,0.76961]
[1727445821209,0.37545,2662.8,2662.4,0.97737486]
[1727445821407,0.37545,2662.8,2662.5,0.37549]
[1727445821604,0.37546,2662.7,2662.4,4.18517486]
[1727445821801,0.37546,2662.7,2662.4,3.2078]
[1727445822111,0.37545,2662.8,2662.5,0.37548]
[1727445822407,3.97,2662.9,2662.4,4.18517486]
[1727445822610,0.37545,2662.8,2662.5,0.37548]
[1727445822802,4.34544,2662.9,2662.6,0.37547]
[1727445823409,4.34544,2662.9,2662.5,1.35285486]
[1727445823605,0.37545,2662.8,2662.5,1.35285486]
[1727445823812,0.37546,2662.7,2662.4,4.56067486]
[1727445824400,0.37544,2662.9,2662.6,0.37547]
[1727445824705,0.37543,2663.0,2662.5,0.97737486]
[1727445824911,0.37544,2662.9,2662.6,1.35284486]
[1727445825412,0.37542,2663.0,2662.7,0.37546]
[1727445825814,0.37542,2663.0,2662.6,0.37547]
[1727445826014,0.37543,2662.9,2662.5,0.97737486]
[1727445826214,3.97,2662.9,2662.5,0.97737486]
[1727445826508,4.9086,2662.9,2662.3,1.37147486]
[1727445826712,4.9086,2662.9,2662.4,0.37549]
[1727445826918,0.37543,2663.0,2662.6,0.37546]
[1727445827103,0.37543,2663.0,2662.4,3.2078]
[1727445827104,0.77221,2663.1,2662.4,4.18517486]
[1727445827310,0.37542,2663.0,2662.7,0.37545]
[1727445827613,0.77221,2663.1,2662.8,0.37544]
[1727445828113,0.77221,2663.1,2662.7,0.37545]
[1727445828510,0.37536,2663.5,2663.0,0.37541]
[1727445828713,3.97,2663.6,2663.0,3.2078]
[1727445829307,3.97,2663.3,2662.9,0.3866]
[1727445829511,4.34538,2663.3,2662.9,3.5944]
[1727445829712,3.97,2663.3,2663.0,0.37541]
[1727445830117,0.37536,2663.4,2663.0,0.37541]
[1727445830416,0.37535,2663.5,2663.0,0.37541]
[1727445830611,3.97,2663.6,2662.9,3.5944]
[1727445830815,0.37535,2663.5,2662.9,3.5944]
[1727445831002,0.37535,2663.5,2663.0,0.3754]
[1727445831207,0.37537,2663.4,2663.0,0.3754]
[1727445831419,0.37535,2663.5,2663.1,0.3754]
[1727445831615,3.97,2663.6,2663.2,0.37538]
[1727445831616,7.55314,2663.6,2663.2,0.37538]
[1727445831805,7.55314,2663.6,2663.2,3.58318]
[1727445831806,0.37534,2663.6,2663.2,3.58318]
[1727445832011,0.78133,2663.7,2663.2,3.58318]
[1727445832211,0.7465,2663.9,2663.5,0.37534]
[1727445832517,0.3712,2663.9,2663.5,3.58314]
[1727445832721,0.3712,2663.9,2663.6,0.37533]
[1727445833105,0.3712,2663.9,2663.7,0.37532]
[1727445833304,0.3712,2663.9,2663.6,0.3894]
[1727445833511,0.3712,2663.9,2663.6,0.76473]
[1727445833823,0.77457,2664.1,2663.7,0.37531]
[1727445834006,0.77457,2664.1,2663.7,0.37532]
[1727445834519,0.77457,2664.1,2663.6,0.3894]
[1727445834520,3.22,2663.9,2663.6,0.3894]
[1727445834905,3.59529,2663.9,2663.6,0.3894]
[1727445835106,3.22,2663.9,2663.6,0.3894]
[1727445835314,3.22,2663.9,2663.6,0.76473]
[1727445835516,3.22,2663.9,2663.6,0.3894]
[1727445835821,3.22,2663.9,2663.6,0.76473]
[1727445836315,3.22,2663.9,2663.6,0.3894]
[1727445836316,3.5953,2663.9,2663.6,0.3894]
[1727445836624,3.22,2663.9,2663.6,0.76472]
[1727445837620,3.5953,2663.9,2663.6,0.3894]
[1727445837822,0.37531,2663.8,2663.6,0.3894]
[1727445838023,3.5953,2663.9,2663.6,0.3894]
[1727445838318,1.33748,2664.1,2663.5,3.2078]
[1727445838319,0.37533,2663.6,2663.5,3.2078]
[1727445838510,0.37534,2663.6,2663.2,0.37539]
[1727445838716,0.37534,2663.6,2663.2,0.37538]
[1727445839021,0.37534,2663.6,2663.3,0.37537]
[1727445839218,3.59533,2663.7,2663.3,0.37537]
[1727445839520,0.37533,2663.6,2663.2,0.37539]
[1727445839709,0.37535,2663.6,2663.2,0.37538]
[1727445839915,0.37535,2663.6,2663.1,3.2078]
[1727445840117,3.22,2663.7,2663.2,0.37539]
[1727445840118,0.37535,2663.5,2663.2,0.37539]
[1727445840323,0.37534,2663.6,2663.3,0.37537]
[1727445840928,0.37538,2663.3,2663.1,3.2078]
[1727445841117,0.37539,2663.2,2663.1,3.2078]
[1727445841417,0.37544,2662.9,2662.8,3.2078]
[1727445841612,3.22,2663.3,2662.8,3.2078]
[1727445841613,3.22,2663.1,2662.8,3.2078]
[1727445841810,0.37543,2662.9,2662.8,3.2078]
[1727445842015,0.37539,2663.3,2662.6,0.3937]
[1727445842209,0.3896,2663.4,2662.8,3.2078]
[1727445842414,0.3896,2663.4,2662.7,3.22]
[1727445842415,3.6154,2663.6,2663.2,0.37539]
[1727445842611,3.99074,2663.6,2663.2,0.37539]
[1727445842823,3.22,2663.6,2663.2,0.3937]
[1727445843018,4.078,2663.7,2663.4,3.58316]
[1727445843221,4.078,2663.7,2663.4,3.58315]
[1727445843426,4.45333,2663.7,2663.4,3.2078]
[1727445843918,4.078,2663.7,2663.4,3.2078]
[1727445844110,4.45332,2663.7,2663.4,3.2078]
[1727445844318,7.67332,2663.7,2663.2,1.15988]
[1727445845413,7.298,2663.7,2663.2,1.15988]
[1727445845613,0.37534,2663.6,2663.2,1.15988]
[1727445845814,7.67332,2663.7,2663.3,0.37537]
[1727445846015,3.22,2663.5,2663.2,0.7845]
[1727445846625,3.59535,2663.5,2663.2,0.7845]
[1727445846921,3.59535,2663.5,2663.2,0.37539]
[1727445847121,0.37536,2663.4,2663.1,3.2078]
[1727445847320,3.59536,2663.5,2663.1,3.5832]
[1727445847524,3.59536,2663.5,2663.1,3.2078]
[1727445847722,3.59535,2663.5,2663.2,0.37538]
[1727445848021,3.59535,2663.5,2663.1,3.2078]
[1727445848022,0.37538,2663.3,2663.1,3.2078]
[1727445848221,3.59538,2663.3,2663.1,3.2078]
[1727445848428,2.65659286,2663.3,2662.8,4.94590486]
[1727445848728,3.22,2662.9,2662.7,0.97737486]
[1727445849019,3.22,2662.9,2662.5,4.56065486]
[1727445849223,0.37547,2662.6,2662.5,3.2078]
[1727445849419,3.22,2662.7,2662.5,3.2078]
[1727445849420,3.59546,2662.7,2662.5,3.2078]
[1727445849622,0.37547,2662.6,2662.5,3.2078]
[1727445850320,0.93871,2662.6,2662.2,0.97737486]
[1727445850528,0.37552,2662.3,2662.1,4.56071486]
[1727445850922,3.618,2662.5,2662.2,0.37553]
[1727445851113,0.37549,2662.5,2662.2,0.37552]
[1727445851320,0.37551,2662.4,2662.2,0.37552]
[1727445851625,3.22,2662.6,2662.2,0.37553]
[1727445851821,3.22,2662.6,2662.1,4.18517486]
[1727445851822,0.37553,2662.2,2662.1,4.18517486]
[1727445852022,4.1588,2662.3,2661.7,0.97737486]
[1727445852023,3.22,2662.3,2661.7,0.97737486]
[1727445852335,3.59559,2661.8,2661.4,1.35300486]
[1727445852512,3.22,2661.8,2661.4,0.97737486]
[1727445852715,3.59559,2661.8,2661.4,1.35300486]
[1727445852928,3.2078,2662.0,2661.5,3.22]
[1727445853228,0.37552,2662.3,2661.9,0.37557]
[1727445853523,0.37551,2662.4,2662.0,0.37555]
[1727445853922,0.37552,2662.3,2661.9,0.76277]
[1727445854225,0.37551,2662.4,2661.9,1.74014486]
[1727445854415,0.37551,2662.4,2661.9,0.76277]
[1727445854614,3.6107,2662.5,2661.9,0.3872]
[1727445854824,0.3771,2662.6,2662.0,3.2078]
[1727445855044,0.3771,2662.6,2662.1,0.97737486]
[1727445855326,0.3771,2662.6,2662.2,1.35290486]
[1727445855519,0.3771,2662.6,2662.3,3.2078]
[1727445855718,0.3771,2662.6,2662.3,3.58331]
[1727445855917,0.3771,2662.6,2662.2,0.97737486]
[1727445855918,0.3771,2662.6,2662.2,1.35289486]
[1727445856117,3.59552,2662.3,2662.2,0.97737486]
[1727445856318,3.22,2662.3,2662.0,0.97737486]
[1727445856517,0.3771,2662.6,2662.0,0.97737486]
[1727445856518,0.37554,2662.1,2662.0,0.97737486]
[1727445856721,0.9389,2662.0,2661.6,1.47693834]
[1727445856919,3.22,2661.7,2661.5,3.2078]
[1727445857726,0.7885,2662.0,2661.5,3.2078]
[1727445857931,0.7885,2662.0,2661.6,0.37561]
[1727445858131,7.298,2662.3,2661.5,7.90473834]
[1727445858329,3.22,2662.3,2661.9,0.37557]
[1727445858724,3.22,2662.3,2661.8,3.2078]
[1727445859226,0.7885,2662.5,2661.8,6.9646]
[1727445859423,0.7885,2662.5,2661.7,4.69693834]
[1727445859424,0.7885,2662.5,2662.1,3.58334]
[1727445859928,0.7885,2662.5,2662.2,0.37553]
[1727445860321,0.7885,2662.5,2662.2,0.7953]
[1727445860724,4.0085,2662.5,2662.2,0.7953]
[1727445862130,4.38399,2662.5,2662.2,0.7953]
[1727445862335,4.38399,2662.5,2661.8,5.46271834]
[1727445862336,3.22,2662.3,2661.8,5.46271834]
[1727445862531,3.59552,2662.3,2661.8,3.6102]
[1727445862725,3.22,2662.1,2661.8,3.6102]
[1727445862927,3.22,2662.1,2661.8,0.4024]
[1727445863535,3.22,2662.1,2661.6,2.27033834]
[1727445863835,3.22,2661.9,2661.6,0.3999]
[1727445864538,3.59558,2661.9,2661.6,0.3999]
[1727445864928,3.59558,2661.9,2661.6,0.77551]
[1727445865227,3.59558,2661.9,2661.6,0.3999]
[1727445865423,3.59558,2661.9,2661.6,0.77551]
[1727445865633,3.59558,2661.9,2661.6,0.3999]
[1727445865843,3.59557,2661.9,2661.6,0.7755]
[1727445866035,3.22,2661.9,2661.6,0.7755]
[1727445866336,3.59558,2661.9,2661.6,0.77551]
[1727445866832,3.59558,2661.9,2661.6,0.3999]
[1727445867038,0.3756,2661.7,2661.6,0.3999]
[1727445867340,3.59558,2661.9,2661.6,0.77551]
[1727445867537,3.22,2661.9,2661.6,0.77551]
[1727445867736,0.37557,2662.0,2661.6,0.77551]
[1727445867928,0.37557,2661.9,2661.6,0.77551]
[1727445868239,0.37557,2661.9,2661.6,0.3999]
[1727445868439,0.37557,2661.9,2661.6,0.77551]
[1727445868634,0.37557,2662.0,2661.6,0.77551]
[1727445868840,0.37557,2662.0,2661.7,0.3756]
[1727445869038,3.9963,2662.5,2661.8,3.2078]
[1727445869039,3.22,2662.3,2661.8,3.2078]
[1727445869338,3.59553,2662.3,2661.9,0.37557]
[1727445869533,0.37553,2662.2,2661.9,0.37557]
[1727445869838,3.22,2662.1,2661.5,4.68473834]
[1727445870036,3.22,2661.6,2661.0,0.8092]
[1727445870229,3.22,2661.3,2661.0,0.8092]
[1727445870436,3.6055,2662.1,2661.1,6.9776]
[1727445870633,3.22,2661.9,2661.4,3.2078]
[1727445870832,0.37563,2661.5,2661.4,3.2078]
[1727445871241,3.59563,2661.5,2661.0,0.8092]
[1727445871543,0.76585,2661.4,2661.0,0.8092]
[1727445871742,3.59568,2661.2,2661.0,0.8092]
[1727445871940,3.22,2661.2,2661.0,4.017]
[1727445872434,3.6102,2661.4,2661.0,4.3927]
[1727445872837,3.6102,2661.4,2661.1,0.37569]
[1727445873147,3.6102,2661.4,2661.0,4.39269]
[1727445873445,2.1249,2661.9,2661.1,0.37569]
[1727445873446,0.37562,2661.6,2661.1,0.37569]
[1727445873646,3.59561,2661.7,2661.2,0.37567]
[1727445873944,0.37562,2661.6,2661.0,4.39269]
[1727445874141,0.37563,2661.6,2661.0,4.017]
[1727445874340,3.22,2661.4,2661.0,4.39269]
[1727445875843,0.37566,2661.3,2661.0,4.017]
[1727445876143,0.93922,2661.1,2660.7,21.41214]
[1727445876339,3.22,2660.9,2660.7,21.41214]
[1727445876642,3.5957,2661.1,2660.7,21.41214]
[1727445877039,3.22,2661.1,2660.7,24.99568]
[1727445877240,3.22,2660.8,2660.7,24.61994]
[1727445878048,1.72351,2661.2,2660.7,24.61994]
[1727445878049,3.22,2661.1,2660.8,0.37573]
[1727445878240,3.22,2661.1,2660.7,24.99568]
[1727445878542,3.59569,2661.1,2660.7,24.61994]
[1727445878734,3.22,2661.1,2660.7,24.61994]
[1727445879142,3.59569,2661.1,2660.7,24.99567]
[1727445879341,0.76688,2661.2,2660.8,0.37573]
[1727445879539,0.76688,2661.2,2660.9,0.3774]
[1727445879733,0.37569,2661.1,2660.9,0.3774]
[1727445879937,3.22,2661.1,2660.9,0.3774]
[1727445880146,3.59569,2661.1,2660.9,0.3774]
[1727445881242,3.22,2661.1,2660.9,0.3774]
[1727445882152,3.59569,2661.1,2660.9,0.3774]
[1727445882447,3.22,2661.1,2660.9,0.3774]
[1727445882745,0.3912,2661.2,2660.9,0.3774]
[1727445882938,0.3912,2661.2,2661.0,0.3757]
[1727445883442,0.37565,2661.4,2661.0,3.2078]
[1727445883748,3.22,2661.3,2661.0,3.2078]
[1727445883949,3.59569,2661.1,2660.8,0.77433]
[1727445884137,3.22,2661.1,2660.9,0.37571]
[1727445884339,0.37571,2661.0,2660.8,0.3986]
[1727445884538,3.6084,2661.1,2660.8,0.77433]
[1727445884752,0.3757,2661.0,2660.8,0.3986]
[1727445884950,0.37571,2660.9,2660.8,0.3986]
[1727445885141,3.6084,2661.1,2660.8,0.3986]
[1727445885543,0.37571,2660.9,2660.8,0.3986]
[1727445885850,0.37571,2660.9,2660.7,24.61994]
[1727445885851,0.37573,2660.8,2660.7,24.61994]
[1727445886343,3.22,2660.9,2660.7,24.99568]
[1727445886536,0.37573,2660.8,2660.7,24.61994]
[1727445887451,3.22,2661.3,2660.7,28.37834]
[1727445887747,3.22,2661.3,2660.7,24.61994]
[1727445887950,0.37567,2661.2,2661.1,0.37569]
[1727445888155,3.22,2661.3,2660.7,24.61994]
[1727445888348,3.22,2661.3,2661.0,0.37569]
[1727445888654,3.59566,2661.3,2661.1,0.37568]
[1727445888848,3.22,2661.3,2661.1,0.37568]
[1727445889052,3.59566,2661.3,2661.0,0.37569]
[1727445889242,0.37567,2661.2,2660.9,0.37571]
[1727445889442,3.22,2661.3,2661.1,0.37568]
[1727445890352,3.22,2661.3,2661.0,0.37569]
[1727445890744,3.22,2661.3,2660.7,24.61994]
[1727445890953,3.22,2661.3,2661.0,0.37569]
[1727445891149,3.59566,2661.3,2660.9,0.3757]
[1727445891359,0.37568,2661.2,2660.7,24.61994]
[1727445891540,0.37568,2661.2,2660.9,0.37571]
[1727445891853,3.22,2661.3,2661.0,0.37569]
[1727445892238,3.59567,2661.3,2660.7,24.61994]
[1727445892654,3.59567,2661.3,2660.9,0.3757]
[1727445893539,3.59567,2661.3,2660.7,26.08408337]
[1727445893540,3.59567,2661.3,2661.0,0.3757]
[1727445894250,3.22,2661.1,2660.8,1.46414337]
[1727445894452,3.59567,2661.3,2661.0,0.3757]
[1727445894748,3.59567,2661.3,2660.8,1.46414337]
[1727445894749,3.22,2661.3,2661.1,0.37568]
[1727445894949,3.22,2661.3,2660.8,1.46414337]
[1727445895152,3.59566,2661.3,2661.0,0.37569]
[1727445895451,3.22,2661.3,2660.9,1.83985337]
[1727445895643,0.37568,2661.2,2660.9,1.83985337]
[1727445895843,3.22,2661.3,2660.9,1.46414337]
[1727445896354,0.37569,2661.1,2660.9,1.83985337]
[1727445896550,0.37569,2661.1,2660.9,1.46414337]
[1727445897253,3.22,2661.3,2661.0,1.35200598]
[1727445897452,3.59566,2661.3,2661.0,0.77899]
[1727445897655,0.37568,2661.2,2661.0,0.4033]
[1727445898043,0.4029,2661.4,2661.0,3.6111]
[1727445898251,0.77855,2661.4,2661.1,3.19167867]
[1727445898452,3.22,2661.3,2661.0,5.07524337]
[1727445898856,3.59569,2661.1,2661.0,4.67194337]
[1727445899053,3.59569,2661.1,2661.0,6.02396704]
[1727445899246,3.59569,2661.1,2661.0,4.55982367]
[1727445899556,3.59569,2661.1,2661.0,6.02396704]
[1727445899759,3.22,2661.1,2661.0,4.55982367]
[1727445899952,3.22,2661.1,2661.0,6.02396704]
[1727445900259,3.59569,2661.1,2661.0,2.81616704]
[1727445900460,1.31496,2661.0,2660.9,1.46414337]
[1727445900666,4.08451,2661.0,2660.7,23.25202337]
[1727445900964,3.22,2661.2,2660.8,1.35258778]
[1727445901157,0.37569,2661.1,2660.8,0.37572]
[1727445901451,3.59568,2661.2,2660.8,0.37573]
[1727445901655,0.37573,2660.8,2660.7,22.87628337]
[1727445901850,0.37573,2660.8,2660.7,22.76532685]
[1727445902053,0.37573,2660.8,2660.7,21.41214]
[1727445902054,2.83266,2660.8,2660.7,21.41214]
[1727445902243,12.59106,2660.8,2660.7,21.41214]
[1727445902846,1.0099,2660.8,2660.7,21.41214]
[1727445903153,3.22,2661.1,2660.9,0.37571]
[1727445903354,0.37568,2661.2,2660.8,0.37572]
[1727445903553,7.9713,2661.4,2660.8,0.9994]
[1727445903554,3.22,2661.0,2660.8,0.9994]
[1727445903754,3.22,2661.0,2660.8,1.37512]
[1727445903947,3.22,2661.2,2660.9,0.37571]
[1727445904253,3.59568,2661.2,2660.8,1.37513]
[1727445904456,3.22,2661.0,2660.8,1.37513]
[1727445904952,3.22,2661.0,2660.7,22.87628337]
[1727445905149,3.59573,2660.8,2660.7,21.41214]
[1727445905348,4.53506,2660.8,2660.7,21.41214]
[1727445905560,15.29316,2660.8,2660.7,21.41214]
[1727445906947,25.67229,2660.8,2660.7,21.41214]
[1727445907355,28.89229,2660.8,2660.7,5.58302]
[1727445907652,28.89229,2660.8,2660.7,1.15846]
[1727445907859,28.89229,2660.8,2660.7,0.38932]
[1727445908471,0.37584,2660.0,2659.9,2.44904337]
[1727445908655,0.37588,2659.8,2659.6,1.46414337]
[1727445908862,3.22,2659.7,2659.5,0.4728]
[1727445909050,3.22,2659.8,2659.5,0.8487]
[1727445909251,3.22,2659.8,2659.6,2.81879017]
[1727445909451,3.22,2659.8,2659.5,1.93694337]
[1727445909759,4.8188,2660.3,2659.6,3.19419861]
[1727445909760,3.22,2660.1,2659.6,3.19419861]
[1727445909953,3.22,2660.1,2659.6,1.84003337]
[1727445910262,4.8188,2660.3,2659.6,1.84003337]
[1727445910263,6.4278,2660.3,2659.8,1.84000337]
[1727445910450,6.4278,2660.3,2659.9,3.32310647]
[1727445910650,6.4278,2660.3,2660.0,0.4771]
[1727445910851,6.4278,2660.3,2660.1,0.5153]
[1727445911163,6.8036,2660.3,2660.1,0.5153]
[1727445911358,0.37581,2660.2,2660.1,0.5153]
[1727445911552,6.8036,2660.3,2660.1,0.5153]
[1727445911863,6.4278,2660.3,2660.1,0.5153]
[1727445912051,3.22,2660.5,2660.1,0.5153]
[1727445912251,3.22,2660.5,2660.1,1.97944337]
[1727445912654,3.22,2660.5,2660.2,0.37581]
[1727445913164,3.22,2660.5,2660.1,1.97944337]
[1727445913357,3.22,2660.7,2660.3,3.58359]
[1727445913663,3.22,2660.7,2660.4,1.7290903]
[1727445913863,3.22,2660.7,2660.4,2.34562337]
[1727445914050,3.22,2660.7,2660.5,0.37577]
[1727445914250,4.8188,2661.1,2660.4,1.96984337]
[1727445914251,3.22,2660.9,2660.7,0.37574]
[1727445914452,6.833,2672.2,2660.7,0.37574]
[1727445914453,1.611,2661.4,2660.8,0.4832]
[1727445914652,3.22,2661.2,2660.8,0.4832]
[1727445914856,3.22,2661.2,2660.9,0.5057]
[1727445915166,1.98665,2661.4,2660.9,0.5057]
[1727445915167,4.831,2661.4,2660.9,3.7135]
[1727445915354,3.59562,2661.6,2661.0,2.8175523]
[1727445915550,3.59562,2661.6,2661.1,1.35331361]
[1727445915751,3.59562,2661.6,2661.2,0.4749]
[1727445915957,3.22,2661.6,2661.2,0.4749]
[1727445916454,3.22,2661.6,2661.2,3.6827]
[1727445916662,3.59554,2662.2,2661.5,3.2078]
[1727445916852,3.59556,2662.0,2661.6,2.309304]
[1727445917160,3.2078,2662.4,2661.6,0.9563]
[1727445917161,3.59559,2661.8,2661.6,0.9563]
[1727445917558,3.59559,2661.8,2661.4,1.46414337]
[1727445917559,3.7568,2661.7,2661.4,1.46414337]
[1727445917764,3.22,2661.6,2661.3,1.46414337]
[1727445917966,3.22,2661.6,2661.2,5.14684337]
[1727445918263,0.37564,2661.4,2661.3,1.35286693]
[1727445918456,3.59566,2661.3,2661.2,0.4749]
[1727445918761,0.37568,2661.2,2661.0,0.9563]
[1727445918963,3.59566,2661.3,2661.0,0.9563]
[1727445919759,3.22,2661.3,2661.0,0.9563]
[1727445919955,6.80343,2661.5,2661.0,0.9563]
[1727445920155,3.59561,2661.7,2661.1,1.72900397]
[1727445920355,3.59561,2661.7,2661.2,1.35318446]
[1727445920356,3.22,2661.7,2661.2,1.35318446]
[1727445920561,3.22,2661.7,2661.2,1.46414337]
[1727445920562,3.59561,2661.7,2661.2,1.46414337]
[1727445921063,0.37562,2661.6,2661.2,1.46414337]
[1727445921259,3.22,2661.5,2661.2,1.46414337]
[1727445921461,3.22,2661.5,2661.1,1.46414337]
[1727445921662,3.22,2661.5,2661.2,1.35315854]
[1727445921862,0.37562,2661.6,2661.1,1.83982337]
[1727445922171,0.37562,2661.6,2661.2,2.81730591]
[1727445922375,0.37562,2661.6,2661.2,1.46414337]
[1727445922762,3.22,2661.7,2661.1,4.67194337]
[1727445922967,0.37559,2661.8,2661.3,0.37566]
[1727445923477,0.3756,2661.7,2661.3,0.37566]
[1727445923778,3.59561,2661.7,2661.2,1.83981337]
[1727445923965,3.59561,2661.7,2661.3,1.35266355]
[1727445924274,3.59561,2661.7,2661.2,1.83981337]
[1727445924275,0.37561,2661.6,2661.2,1.83981337]
[1727445924467,3.22,2661.7,2661.3,1.35255832]
[1727445924776,0.37563,2661.5,2661.2,1.46414337]
[1727445924962,0.37566,2661.3,2661.1,1.46414337]
[1727445925160,0.37566,2661.3,2661.0,2.42044337]
[1727445927469,3.59565,2661.4,2661.0,2.42044337]
[1727445927778,3.22,2661.4,2661.1,3.19271781]
[1727445927963,0.93902,2661.7,2661.1,1.46414337]
[1727445927964,3.22,2661.7,2661.1,1.46414337]
[1727445928270,0.37562,2661.6,2661.2,3.19252291]
[1727445928474,3.59561,2661.7,2661.3,0.37565]
[1727445928777,0.3756,2661.7,2661.3,0.37565]
[1727445928976,0.37562,2661.6,2661.2,1.83980337]
[1727445929281,0.37562,2661.6,2661.2,0.37566]
[1727445929282,3.59562,2661.6,2661.2,0.37566]
[1727445929468,3.59562,2661.6,2661.3,0.37566]
[1727445929776,3.22,2661.4,2661.2,1.46414337]
[1727445929973,3.22,2661.4,2661.0,2.42044337]
[1727445930178,3.59568,2661.2,2661.0,0.9563]
[1727445930373,0.37569,2661.1,2661.0,0.9563]
[1727445930571,3.7576,2661.1,2660.9,0.4794]
[1727445930775,0.37569,2661.1,2660.9,0.4794]
[1727445931168,0.3757,2661.0,2660.9,0.4794]
[1727445931972,3.22,2661.2,2660.9,0.4794]
[1727445932274,3.5957,2661.0,2660.9,0.4794]
[1727445932575,3.5957,2661.0,2660.6,1.46414337]
[1727445932765,0.37574,2660.7,2660.6,1.46414337]
[1727445932970,0.37576,2660.6,2660.5,1.46414337]
[1727445933170,0.37576,2660.6,2660.5,2.81753975]
[1727445933481,0.37576,2660.6,2660.5,2.81755786]
[1727445933777,0.37576,2660.6,2660.4,3.7084]
[1727445933778,3.59577,2660.6,2660.4,3.7084]
[1727445934172,0.37577,2660.5,2660.4,0.5006]
[1727445934975,3.22,2660.6,2660.4,0.5006]
[1727445935281,3.59576,2660.6,2660.4,0.5006]
[1727445935573,3.22,2660.6,2660.4,0.5006]
[1727445935781,3.59576,2660.6,2660.4,0.5006]
[1727445936169,3.5957,2661.0,2660.4,0.5006]
[1727445936379,1.599,2661.3,2660.6,6.4278]
[1727445936582,0.37568,2661.2,2660.8,0.37572]
[1727445936779,3.22,2661.2,2660.7,2.34447337]
[1727445936980,3.59568,2661.2,2660.8,0.85622]
[1727445937175,0.37569,2661.1,2660.8,0.85622]
[1727445937991,0.37571,2661.0,2660.8,0.4805]
[1727445938279,3.59568,2661.2,2660.9,0.37571]
[1727445938592,3.22,2661.2,2661.0,0.4693]
[1727445938791,0.37569,2661.1,2661.0,0.4693]
[1727445939584,0.37564,2661.5,2661.0,0.4693]
[1727445939788,7.36683,2661.7,2661.0,6.09268337]
[1727445939789,3.2078,2661.7,2661.0,6.09268337]
[1727445940088,0.37564,2661.5,2661.1,2.81721289]
[1727445940288,0.37564,2661.5,2661.0,0.4693]
[1727445940289,0.37564,2661.5,2661.2,0.37566]
[1727445940478,0.37564,2661.5,2661.3,0.5026]
[1727445940678,0.37562,2661.6,2661.3,1.0127]
[1727445941175,3.22,2661.7,2661.3,1.38836]
[1727445941380,0.37562,2661.6,2661.3,1.38836]
[1727445941580,0.37563,2661.5,2661.3,1.0127]
[1727445942083,0.37563,2661.6,2661.3,1.0127]
[1727445942277,0.37563,2661.6,2661.3,1.38836]
[1727445942488,0.37563,2661.5,2661.3,1.0127]
[1727445942786,0.37564,2661.4,2661.3,1.0127]
[1727445942983,4.15902,2661.7,2661.3,1.0127]
[1727445943286,0.37563,2661.5,2661.3,1.0127]
[1727445944688,0.37564,2661.4,2661.3,1.0127]
[1727445945075,4.15902,2661.7,2661.3,1.0127]
[1727445945281,2.25396,2661.3,2661.2,3.2078]
[1727445945479,0.37569,2661.1,2661.0,3.6771]
[1727445945790,0.37569,2661.1,2661.0,3.2078]
[1727445945984,0.3757,2661.0,2660.9,0.473]
[1727445946286,7.36706,2661.0,2660.5,4.67194337]
[1727445946496,6.4278,2661.0,2660.5,4.67194337]
[1727445946695,0.37572,2660.9,2660.6,0.37575]
[1727445946878,3.22,2661.0,2660.7,0.4996]